Cogmind - Beta 10.1 @@@ ROGUE MODE // 2020.10.27 @ 13:21:52 Player: Boris Result: Destroyed by Enhanced Grunt with Neutron Cannon Performance ------------- Evolutions (3) 1500 Regions Visited (14) 2800 Robots Destroyed (169) 845 Value Destroyed (5352) 5352 Prototype IDs (240) 4800 Alien Tech Used (0) 0 Bonus (5534) 5534 TOTAL SCORE: 20831 Bonus ------- High Alert Combat Kills 222 Follower Combat Kills 1412 Entered Garrisons 200 Used RIF Installer 500 Aligned with FarCom 300 Met Data Miner 300 Used Data Conduit 3000 Friendly Fire -400 Cogmind --------- Core Integrity 0/700 Matter 144/300 Energy 98/100 System Corruption 0% Temperature Cool (12) Movement Core (50) Location -7/Data Miner Parts ------- > --- POWER (1) -------- (None) > --- PROPULSION (2) --- (None) > --- UTILITY (7) ------ (None) > --- WEAPON (3) ------- (None) > --- INVENTORY (4) ---- Heavy Beamcaster Improved EM Pulse Cannon Improved EM Pulse Cannon Missile Launcher Peak State ------------ > --- POWER ------------ Reinforced Deuterium Engine > --- PROPULSION ------- Heavy Treads > --- UTILITY ---------- High-capacity Storage Unit Army-in-a-Box > --- WEAPON ----------- Gauss Rifle Gauss Rifle Katana > --- INVENTORY -------- Improved Heat Sink High-capacity Storage Unit High-capacity Matter Pod Experimental Sensor Array Particle Charger Hardened Medium Armor Plating Hardened Medium Armor Plating Relay Coupler [Brawler] System Backup Module Variable Charge Gun Improved EM Pulse Cannon Shock Bomb Launcher [Rating: 86] Favorites ----------- Power Reinforced Deuterium Engine Engine Reinforced Deuterium Engine Power Core Light Nuclear Core Propulsion Light Treads Treads Light Treads Utility High-capacity Storage Unit Device Improved Heat Sink Storage High-capacity Storage Unit Processor Targeting Computer Hackware Hacking Suite Protection Hardened Medium Armor Plating Weapon Light EM Pulse Cannon Energy Gun EM Pulse Gun Energy Cannon Light EM Pulse Cannon Ballistic Gun Gauss Rifle Launcher EMP Blaster Special Weapon Remote Datajack Impact Weapon Great Maul Slashing Weapon Katana Piercing Weapon Heavy Pick Special Melee Weapon Datajack Build | -11 -10 -10 -9 -9 -9 -8 -8 -8 -7 -7 -7 -7 -7 -7 ------- Run | Scr Mat Min Mat Min Exi Min Mat Gar Fac Was Fac Low Low Dat Slots Evolved 6 | . . . 2 . . . 2 . 2 . . . . . Power . | . . . . . . . . . . . . . . . Propulsion . | . . . . . . . . . . . . . . . Utility 5 | . . . 1 . . . 2 . 2 . . . . . Weapon 1 | . . . 1 . . . . . . . . . . . Parts Attached 218 | 6 14 4 21 11 5 11 2 35 52 25 3 2 15 12 Power 11 | 1 2 1 1 . 1 . . 1 3 1 . . . . Engine 9 | 1 2 1 1 . 1 . . 1 1 1 . . . . Core 2 | . . . . . . . . . 2 . . . . . Reactor . | . . . . . . . . . . . . . . . Propulsion 24 | 2 1 . 6 . 1 . . 3 7 4 . . . . Treads 24 | 2 1 . 6 . 1 . . 3 7 4 . . . . Leg . | . . . . . . . . . . . . . . . Wheel . | . . . . . . . . . . . . . . . Hover . | . . . . . . . . . . . . . . . Flight . | . . . . . . . . . . . . . . . Utility 58 | 1 4 1 2 . 3 . 2 6 15 11 2 2 4 5 Device 20 | . . . . . . . 1 2 4 5 . 1 4 3 Storage 17 | 1 4 1 2 . 3 . . . 2 2 1 1 . . Processor 2 | . . . . . . . . 1 1 . . . . . Hackware 4 | . . . . . . . . 1 1 1 1 . . . Protection 15 | . . . . . . . 1 2 7 3 . . . 2 Artifact . | . . . . . . . . . . . . . . . Weapon 125 | 2 7 2 12 11 . 11 . 25 27 9 1 . 11 7 Energy Gun 30 | 1 4 1 1 . . . . 6 9 1 1 . 6 . Energy Cannon 35 | . 1 . 7 6 . 5 . 7 5 . . . . 4 Ballistic Gun 29 | 1 1 . 3 1 . . . 7 9 4 . . 1 2 Ballistic Cannon . | . . . . . . . . . . . . . . . Launcher 18 | . . 1 1 3 . 6 . 2 1 1 . . 3 . Special Weapon 7 | . 1 . . . . . . . 3 2 . . 1 . Impact Weapon 1 | . . . . 1 . . . . . . . . . . Slashing Weapon 3 | . . . . . . . . 2 . 1 . . . . Piercing Weapon 1 | . . . . . . . . . . . . . . 1 Special Melee Weapon 1 | . . . . . . . . 1 . . . . . . Unidentified Prototypes 2 | . . . 2 . . . . . . . . . . . Parts Lost 37 | . 1 . 1 2 . 1 . 9 9 7 . . . 7 Power 3 | . . . . . . . . . 2 . . . . 1 Propulsion 6 | . . . . . . . . 1 1 3 . . . 1 Utility 10 | . . . . . . . . 3 2 2 . . . 3 Weapon 18 | . 1 . 1 2 . 1 . 5 4 2 . . . 2 Highest Loss Streak 7 | . 1 . 1 1 . 1 . 6 2 7 . . . 7 Average Slot Usage (%) 95 | . 96 100 94 99 100 100 100 99 99 70 92 92 91 90 Engine 8 | . 14 14 11 11 11 11 9 9 2 5 7 7 7 7 Treads 16 | . 28 28 21 22 22 22 18 18 14 8 7 7 7 6 Device 4 | . . . . . . . 9 5 4 7 12 7 7 13 Storage 27 | . 25 28 29 33 33 33 27 27 28 14 19 29 30 27 Processor 1 | . . . . . . . . 5 4 1 . . . . Hackware 2 | . . . . . . . . 3 3 1 2 7 7 3 Protection 5 | . . . . . . . 9 3 10 7 18 7 7 7 Energy Gun 5 | . 21 27 2 . . . . 1 4 . 7 7 6 1 Energy Cannon 9 | . 1 . 18 29 33 32 27 10 4 . . . . 9 Ballistic Gun 9 | . 4 . 10 . . . . 11 13 15 15 15 15 5 Naked Turns 7 | . . . . . . . . . . 4 . . . 3 Heaviest Build 161 | 11 25 49 84 84 118 118 126 126 161 153 139 149 155 156 Greatest Support 70 | 40 40 40 43 43 43 43 43 43 50 70 70 70 70 70 Greatest Overweight (x) 26 | . . 1 2 1 2 2 2 6 3 26 1 2 2 2 Average Overweight (x) 1 | . . . 1 1 1 2 2 2 2 1 1 1 2 1 Largest Inventory Capacity 36 | 6 12 16 24 24 28 28 28 28 36 36 28 34 34 34 Average Capacity 26 | 5 9 15 21 24 24 28 28 28 34 19 24 33 34 30 Most Carried 36 | 4 11 16 24 24 25 27 26 28 36 36 27 34 34 34 Average Carried 25 | 2 8 14 20 23 23 25 25 27 32 18 21 31 33 29 Final Capacity 36 | 6 12 16 24 24 28 28 28 28 36 20 28 34 34 4 Final Carried 35 | 4 11 16 24 23 25 27 25 28 35 20 27 34 34 4 Class Distribution -------------------- 23% | Hauler-Mutant 17% | Hauler-Skirmisher 15% | Mutant 14% | Hauler-Gunner 13% | Hauler-Tank 6% | Scavenger-Mutant 3% | Scavenger-Tank Dominant Class ---------------- Mutant | -10/Materials Mutant | -10/Mines Hauler-Gunner | -9/Materials Hauler-Gunner | -9/Mines Hauler-Gunner | -9/Exiles Hauler-Skirmisher | -8/Mines Hauler-Skirmisher | -8/Materials Scavenger-Mutant | -8/Garrison Hauler-Skirmisher | -7/Factory Hauler-Mutant | -7/Waste Hauler-Tank | -7/Factory Hauler-Mutant | -7/Lower Caves Hauler-Mutant | -7/Lower Caves Hauler-Mutant | -7/Data Miner Resources | -11 -10 -10 -9 -9 -9 -8 -8 -8 -7 -7 -7 -7 -7 -7 ----------- Run | Scr Mat Min Mat Min Exi Min Mat Gar Fac Was Fac Low Low Dat Matter Collected 4081 | 260 265 80 302 167 . 215 . 485 1161 704 28 20 372 22 Remotely . | . . . . . . . . . . . . . . . Salvage Created 6331 | 58 623 260 1003 209 . 468 . 932 1948 348 69 . 391 22 Parts 368 | 1 38 19 75 19 . 37 . 43 114 4 3 . 14 1 Haulers Intercepted 6 | . 2 . 3 . . . . . 1 . . . . . Recyclers Shooed 1 | . . . . . . . . . . . 1 . . . Parts Field Recycled . | . . . . . . . . . . . . . . . Retrieved Matter . | . . . . . . . . . . . . . . . Parts Self-Destructed 35 | . . . . . . . . . . . . 1 34 . Prevented . | . . . . . . . . . . . . . . . Kills | -11 -10 -10 -9 -9 -9 -8 -8 -8 -7 -7 -7 -7 -7 -7 ------- Run | Scr Mat Min Mat Min Exi Min Mat Gar Fac Was Fac Low Low Dat Combat Hostiles Destroyed 134 | . 13 11 17 11 . 16 . 19 34 1 1 . 11 . Melee 2 | . . . . . . . . 2 . . . . . . Guns 65 | . 10 8 2 1 . . . 11 24 1 1 . 7 . Cannons 34 | . 3 . 13 3 . 5 . 4 6 . . . . . AOE 29 | . . 3 2 6 . 11 . 1 2 . . . 4 . Classes Destroyed 18 | 1 4 . 6 . . 1 . 2 1 1 . . 2 . Worker 7 | . 1 . 2 . . 1 . . 3 . . . . . Builder 6 | . . . 2 1 . . . . 3 . . . . . Tunneler 2 | . . . . . . 1 . . 1 . . . . . Hauler 6 | . 2 . 3 . . . . . 1 . . . . . Recycler 6 | 1 1 . . . . . . . 3 . 1 . . . Minesweeper 1 | . . . . . . . . . . . . . 1 . Mechanic 1 | . . . 1 . . . . . . . . . . . Operator 1 | . . . 1 . . . . . . . . . . . Watcher 2 | . . . 1 . . . . . 1 . . . . . Swarmer 49 | . 5 9 5 7 . 10 . 2 8 . 1 . 2 . Grunt 53 | . 8 2 5 4 . 6 . 10 14 . . . 4 . Brawler 6 | . . . 1 . . . . 1 2 . . . 2 . Duelist 3 | . . . . . . . . 2 . . . . 1 . Protector 1 | . . . . . . . . . . . . . 1 . Sentry 17 | . . . 7 . . . . 3 6 . . . 1 . Hunter 1 | . . . . . . . . 1 . . . . . . Programmer 4 | . . . . . . . . . 4 . . . . . Compactor 1 | . . . . . . . . . . 1 . . . . Thug 1 | . . 1 . . . . . . . . . . . . Best Kill Streak 8 | 1 3 3 5 4 . 4 . 8 5 1 1 . 5 1 Combat Bots Only 8 | . 3 3 4 4 . 4 . 8 5 1 1 . 5 . Max Kills in Single Turn 3 | 1 1 2 2 2 . 3 . 2 2 1 1 . 2 1 Gunslinging 1 | . . . . . . . . 1 . . . . . . Exploded 3 | . . 2 1 2 . 3 . 1 2 . . . 2 . Melee 1 | . . . . . . . . 1 . . . . . . Uniques/NPCs Destroyed 1 | . . . . . . . . . . . . . . 1 Data Miner (-7/Data Miner) Combat | -11 -10 -10 -9 -9 -9 -8 -8 -8 -7 -7 -7 -7 -7 -7 -------- Run | Scr Mat Min Mat Min Exi Min Mat Gar Fac Was Fac Low Low Dat Damage Taken 8560 | . 350 225 447 521 . 257 . 1491 2746 333 47 . 427 1716 Core 1056 | . 53 26 68 29 . 31 . 134 267 182 27 . 54 185 Absorbed by Shields . | . . . . . . . . . . . . . . . Core Remaining (%) 77 | 100 . 68 . . . 68 . 75 . . . . . . Volleys Fired 398 | 2 41 15 41 18 . 16 . 94 101 25 3 1 31 10 Largest 3 | 1 2 2 3 3 . 3 . 3 3 3 1 1 3 2 Hottest 225 | 40 100 80 168 168 . 168 . 168 155 136 81 81 225 56 Shots Fired 824 | 2 76 29 116 20 . 27 . 162 253 59 3 1 63 13 Gun 573 | 2 70 28 44 3 . . . 85 212 55 3 1 57 13 Cannon 210 | . 5 . 71 10 . 18 . 72 34 . . . . . Launcher 31 | . . 1 1 7 . 9 . 5 3 . . . 5 . Special 10 | . 1 . . . . . . . 4 4 . . 1 . Kinetic 400 | . 21 . 44 3 . . . 58 166 53 . . 42 13 Thermal 141 | 2 19 . 22 . . . . 27 50 2 3 1 15 . Explosive 16 | . . 1 1 5 . 4 . . . . . . 5 . Electromagnetic 258 | . 36 28 49 12 . 23 . 77 33 . . . . . Robot Hit Streak 23 | 1 13 5 23 6 . 7 . 23 15 10 1 . 10 3 Robot Miss Streak 5 | 1 4 2 5 1 . 3 . 3 5 5 1 2 3 1 Penetration Max 1 | . . . . . . . . . . 1 . . . 1 Secondary Targets 6 | . . 1 . . . . . 3 1 . . . 1 . Max Gunslinging Chain 2 | . . 1 . . . . . 2 1 . . . 1 . Shots Hit Robots 552 | 1 50 18 70 15 . 15 . 81 193 55 1 . 40 13 Core Hits 336 | 2 29 15 37 21 . 28 . 32 114 27 1 . 23 7 Critical Hits 8 | . 1 . . . . 2 . 2 1 . . . 2 . Critical Kills 4 | . . . . . . 2 . 1 . . . . 1 . Critical Parts Destroyed 4 | . 1 . . . . . . 1 1 . . . 1 . Melee Attacks 106 | . . . . 12 . . . 71 . . . . . 23 Impact 12 | . . . . 12 . . . . . . . . . . Slashing 69 | . . . . . . . . 69 . . . . . . Piercing 23 | . . . . . . . . . . . . . . 23 Sneak Attacks 2 | . . . . . . . . 1 . . . . . 1 Combat Hostiles 1 | . . . . . . . . 1 . . . . . . Follow-up Attacks . | . . . . . . . . . . . . . . . Damage Inflicted 13326 | 23 720 507 1603 966 . 858 . 1459 3742 1535 94 . 1397 422 Guns 7041 | 23 572 186 237 25 . . . 865 2642 1535 24 . 715 217 Cannons 2373 | . 87 . 1095 168 . 296 . 244 483 . . . . . Explosions 3051 | . 54 306 233 535 . 562 . 160 519 . . . 682 . Melee 561 | . . . . 186 . . . 170 . . . . . 205 Ramming 300 | . 7 15 38 52 . . . 20 98 . 70 . . . Kinetic 5141 | . 104 . 237 25 . . . 503 2005 1479 . . 571 217 Thermal 2414 | 23 239 209 403 28 . 62 . 394 832 56 24 . 144 . Explosive 1951 | . . 97 130 373 . 298 . . 371 . . . 682 . Electromagnetic 2959 | . 370 186 795 302 . 498 . 372 436 . . . . . Impact 186 | . . . . 186 . . . . . . . . . . Slashing 170 | . . . . . . . . 170 . . . . . . Piercing 205 | . . . . . . . . . . . . . . 205 Highest Corruption 3 | . . . . . . . . . 3 3 1 . . . Average Corruption 2 | . . . . . . . . . 2 2 1 . . . Corruption Purged 3 | . . . . . . . . . . 2 1 . . . Effects 59 | . . . . . . . . . 37 22 . . . . Message Errors 19 | . . . . . . . . . 11 8 . . . . Matter Fused 3 | . . . . . . . . . . 3 . . . . Heat Flow Errors 8 | . . . . . . . . . 5 3 . . . . Energy Discharges 7 | . . . . . . . . . 5 2 . . . . Data Loss (minor) 12 | . . . . . . . . . 6 6 . . . . Targeting Errors 9 | . . . . . . . . . 9 . . . . . Weapon Failures 1 | . . . . . . . . . 1 . . . . . Overload Shots 2 | . . . . . . . . . . . . . 2 . Overflow Damage 415 | . . 5 20 6 . 34 . 73 269 . 1 . 7 . Projectiles 20 | . . . 20 . . . . . . . . . . . Explosions 310 | . . 5 . . . 34 . . 264 . . . 7 . Melee 85 | . . . . 6 . . . 73 5 . 1 . . . Knockbacks 2 | . . . . 2 . . . . . . . . . . Impact 1 | . . . . 1 . . . . . . . . . . Kinetic . | . . . . . . . . . . . . . . . Secondary 1 | . . . . 1 . . . . . . . . . . Self-Inflicted Damage 459 | . 43 32 . 34 . 69 . 5 206 . . . 70 . Shots 13 | . 2 1 . 1 . 4 . 1 3 . . . 1 . Rammed 24 | . 3 3 4 3 . . . 3 6 . 2 . . . Targets Rammed 28 | . 3 3 4 3 . . . 3 9 . 3 . . . Kicked . | . . . . . . . . . . . . . . . Crushed 4 | . . . . . . . . . 3 . 1 . . . Highest Temperature 372 | . 146 102 324 129 . 231 . 251 256 274 48 42 372 12 Average Temperature 74 | . 34 43 90 58 . 85 . 72 74 79 25 24 102 6 Received Heat Transfer 1947 | . 75 18 150 165 . 45 . 495 726 . 6 . 45 222 Siege Activations . | . . . . . . . . . . . . . . . Robots Corrupted 4 | . 1 . . . . . . 1 2 . . . . . Combat Hostiles 3 | . . . . . . . . 1 2 . . . . . Parts Fried 14 | . 3 . 3 1 . 3 . . 4 . . . . . Impact Corruptions 4 | . . . . 2 . . . . 1 . 1 . . . Robots Melted . | . . . . . . . . . . . . . . . Combat Hostiles . | . . . . . . . . . . . . . . . Parts Melted 6 | . . 1 1 . . . . 1 2 . 1 . . . Heat Transferred 4563 | 50 510 350 829 50 . 50 . 827 1532 125 37 . 203 . Parts Sabotaged . | . . . . . . . . . . . . . . . Parts Stolen . | . . . . . . . . . . . . . . . Parts Stripped . | . . . . . . . . . . . . . . . Power Chain Reactions 9 | . 2 1 3 1 . 1 . 1 . . . . . . Missiles Intercepted . | . . . . . . . . . . . . . . . Alert | -11 -10 -10 -9 -9 -9 -8 -8 -8 -7 -7 -7 -7 -7 -7 ------- Run | Scr Mat Min Mat Min Exi Min Mat Gar Fac Was Fac Low Low Dat Peak Influence 772 | 5 247 170 444 380 . 229 21 490 772 270 434 . . . Initial 270 | . 3 . 54 140 . . 17 13 256 270 . . . . Average 191 | . 81 69 226 226 . 86 17 281 243 83 154 . . . Maximum Alert Level 3 | . 1 . 2 1 . 1 . 2 3 1 2 . . . Low Security (%) 57 | 100 93 100 55 47 . 96 100 33 39 68 65 . . . Level 1 29 | . 6 . 26 52 . 3 . 24 50 31 29 . . . Level 2 11 | . . . 18 . . . . 41 4 . 5 . . . Level 3 1 | . . . . . . . . . 4 . . . . . Level 4 . | . . . . . . . . . . . . . . . Level 5 . | . . . . . . . . . . . . . . . High Security . | . . . . . . . . . . . . . . . Max Security . | . . . . . . . . . . . . . . . Squads Dispatched 20 | . 3 . 2 . . . . . 10 . 4 . 1 . Investigation 8 | . 1 . 2 . . . . . 3 . 2 . . . Extermination 4 | . . . . . . . . . 4 . . . . . Reinforcement 6 | . 2 . . . . . . . 2 . 2 . . . Assault 2 | . . . . . . . . . 1 . . . 1 . Garrison . | . . . . . . . . . . . . . . . Intercept . | . . . . . . . . . . . . . . . Construction Impeded 2 | . . . . . . . . . 1 . 1 . . . Haulers Reinforced . | . . . . . . . . . . . . . . . Stealth | -11 -10 -10 -9 -9 -9 -8 -8 -8 -7 -7 -7 -7 -7 -7 --------- Run | Scr Mat Min Mat Min Exi Min Mat Gar Fac Was Fac Low Low Dat Distress Signals 3 | . 1 . 1 . . . . . 1 . . . . . Communications Jammed . | . . . . . . . . . . . . . . . Distress Signals . | . . . . . . . . . . . . . . . Times Spotted 208 | . 30 10 32 15 . 20 . 24 44 4 6 3 16 4 Peak Tracking Total 8 | . 5 3 5 4 . 4 . 8 4 2 3 3 5 4 Tactical Retreats 19 | . 5 . 2 . . 4 . 3 2 . . . 3 . Traps | -11 -10 -10 -9 -9 -9 -8 -8 -8 -7 -7 -7 -7 -7 -7 ------- Run | Scr Mat Min Mat Min Exi Min Mat Gar Fac Was Fac Low Low Dat Traps Triggered 14 | . 2 . 1 . . . . 7 4 . . . . . Indirectly . | . . . . . . . . . . . . . . . Trap Hack Attempts . | . . . . . . . . . . . . . . . Triggered . | . . . . . . . . . . . . . . . Disarmed . | . . . . . . . . . . . . . . . Reprogrammed . | . . . . . . . . . . . . . . . Reused . | . . . . . . . . . . . . . . . Traps Extracted . | . . . . . . . . . . . . . . . Installed 1 | . . . . . . . . . . . . . . 1 Triggered 1 | . . . . . . . . . . . . . 1 . Machines | -11 -10 -10 -9 -9 -9 -8 -8 -8 -7 -7 -7 -7 -7 -7 ---------- Run | Scr Mat Min Mat Min Exi Min Mat Gar Fac Was Fac Low Low Dat Machines Disabled 23 | . 1 6 . 1 . . . 2 10 . 2 . 1 . Max in Single Turn 4 | . 1 4 . 1 . . . 1 4 . . . . . Garrison Access 3 | . . . . . . . . . 2 . 1 . . . Garrison Relay 2 | . . . . . . . . 2 . . . . . . Machines Sabotaged . | . . . . . . . . . . . . . . . Garrisons Compromised . | . . . . . . . . . . . . . . . Overloaded Fab Kills . | . . . . . . . . . . . . . . . Fab Network Shutdowns . | . . . . . . . . . . . . . . . Hacking | -11 -10 -10 -9 -9 -9 -8 -8 -8 -7 -7 -7 -7 -7 -7 --------- Run | Scr Mat Min Mat Min Exi Min Mat Gar Fac Was Fac Low Low Dat Machines Accessed 54 | . 7 1 11 . 2 . 1 . 15 . 10 2 1 4 Terminals 26 | . 5 . 7 . . . . . 7 . 7 . . . Fabricators 3 | . . . . . . . . . 2 . 1 . . . Repair Stations 5 | . 1 . 2 . . . . . 1 . 1 . . . Recycling Units 4 | . 1 . 1 . . . . . 2 . . . . . Scanalyzers 2 | . . . 1 . . . . . 1 . . . . . Garrison Access 4 | . . . . . . . 1 . 2 . 1 . . . Total Hacks 128 | . 16 1 30 . 2 . 1 . 31 . 19 2 1 25 Successful 75 | . 7 1 16 . 2 . 1 . 13 . 7 2 1 25 Failed 52 | . 8 . 14 . . . . . 18 . 12 . . . Catastrophic 11 | . . . 2 . . . . . 6 . 3 . . . Database Lockouts 1 | . 1 . . . . . . . . . . . . . Manual 42 | . 7 . 15 . 1 . . . 8 . 11 . . . Terminals 62 | . 13 . 18 . . . . . 20 . 11 . . . Fabricators 5 | . . . . . . . . . 2 . 3 . . . Repair Stations 12 | . 2 . 6 . . . . . 2 . 2 . . . Recycling Units 5 | . 1 . 2 . . . . . 2 . . . . . Scanalyzers 7 | . . . 4 . . . . . 3 . . . . . Garrison Access 6 | . . . . . . . 1 . 2 . 3 . . . Terminal Hacks 44 | . 4 1 5 . 2 . . . 3 . 1 2 1 25 Record 12 | . . . . . 1 . . . . . . . . 11 Part Schematic 8 | . . . 2 . . . . . . . . . . 6 Robot Schematic 8 | . . . . . . . . . . . . . . 8 Robot Analysis 1 | . 1 . . . . . . . . . . . . . Prototype ID Bank 1 | . . . 1 . . . . . . . . . . . Open Door 4 | . . 1 . . . . . . . . . 2 1 . Branch Access Points 3 | . 1 . 1 . . . . . . . 1 . . . Emergency Access Points 1 | . . . . . . . . . 1 . . . . . Terminal Index 2 | . 1 . . . . . . . 1 . . . . . Hauler Manifests 1 | . . . . . . . . . 1 . . . . . Zone Layout 2 | . 1 . 1 . . . . . . . . . . . EX-Prototype ID Bank 1 | . . . . . 1 . . . . . . . . . Fabricator Hacks 2 | . . . . . . . . . . . 2 . . . Load Schematic 1 | . . . . . . . . . . . 1 . . . Build 1 | . . . . . . . . . . . 1 . . . Repair Station Hacks 9 | . 2 . 3 . . . . . 2 . 2 . . . Scan Component 5 | . 1 . 2 . . . . . 1 . 1 . . . Repair 4 | . 1 . 1 . . . . . 1 . 1 . . . Recycling Unit Hacks 2 | . . . 1 . . . . . 1 . . . . . Retrieve Components 2 | . . . 1 . . . . . 1 . . . . . Scanalyzer 6 | . . . 3 . . . . . 3 . . . . . Insert Component 2 | . . . 1 . . . . . 1 . . . . . Analyze 4 | . . . 2 . . . . . 2 . . . . . Garrison Access Hacks 4 | . . . . . . . 1 . 2 . 1 . . . Unlock Access 1 | . . . . . . . 1 . . . . . . . Seal Access 3 | . . . . . . . . . 2 . 1 . . . Unauthorized Hacks 8 | . 1 . 4 . . . . . 2 . 1 . . . Terminals 6 | . 1 . 3 . . . . . 1 . 1 . . . Track 1 | . . . 1 . . . . . . . . . . . Botnet 5 | . 1 . 2 . . . . . 1 . 1 . . . Fabricators 1 | . . . . . . . . . 1 . . . . . Haulers 1 | . . . . . . . . . 1 . . . . . Repair Stations . | . . . . . . . . . . . . . . . Recycling Units . | . . . . . . . . . . . . . . . Scanalyzers 1 | . . . 1 . . . . . . . . . . . Extract 1 | . . . 1 . . . . . . . . . . . Garrison Access . | . . . . . . . . . . . . . . . Data Cores Recovered 2 | . . . 1 . . . . . . . 1 . . . Used 2 | . . . 1 . . . . . . . 1 . . . Hacking Detections 36 | . 7 . 9 . . . . . 10 . 10 . . . Full Trace Events 5 | . . . . . . . . . 3 . 2 . . . Feedback Events . | . . . . . . . . . . . . . . . Feedback Blocked . | . . . . . . . . . . . . . . . Robot Schematics Acquired 8 | . . . . . . . . . . . . . . 8 Robots Built . | . . . . . . . . . . . . . . . Matter . | . . . . . . . . . . . . . . . Time . | . . . . . . . . . . . . . . . Total Robot Build Rating . | . . . . . . . . . . . . . . . Part Schematics Acquired 15 | . . . 8 . . . . . 1 . . . . 6 Parts Built 1 | . . . . . . . . . . . 1 . . . Matter 102 | . . . . . . . . . . . 102 . . . Time 25 | . . . . . . . . . . . 25 . . . Total Part Build Rating 1 | . . . . . . . . . . . 1 . . . Parts Repaired 4 | . 1 . 1 . . . . . 1 . 1 . . . Time 119 | . 26 . 26 . . . . . 32 . 35 . . . Parts Recycled . | . . . . . . . . . . . . . . . Recycled Matter . | . . . . . . . . . . . . . . . Retrieved Matter . | . . . . . . . . . . . . . . . Retrieved Components 5 | . . . 4 . . . . . 1 . . . . . Parts Scanalyzed 2 | . . . 1 . . . . . 1 . . . . . Part Schematics Acquired 2 | . . . 1 . . . . . 1 . . . . . Parts Damaged . | . . . . . . . . . . . . . . . Bothacking | -11 -10 -10 -9 -9 -9 -8 -8 -8 -7 -7 -7 -7 -7 -7 ------------ Run | Scr Mat Min Mat Min Exi Min Mat Gar Fac Was Fac Low Low Dat Used RIF Installer 1 | . . . . . . . . 1 . . . . . . Robots Hacked 8 | . . . . . . . . 1 3 3 . . 1 . Non-combat 3 | . . . . . . . . . 3 . . . . . Combat 5 | . . . . . . . . 1 . 3 . . 1 . Robot Hacks Applied 9 | . . . . . . . . 1 3 4 . . 1 . parse_system 2 | . . . . . . . . . . 1 . . 1 . drop_inventory 1 | . . . . . . . . . 1 . . . . . map_route 1 | . . . . . . . . . 1 . . . . . ignore_targets 3 | . . . . . . . . . . 3 . . . . overwrite_iff 1 | . . . . . . . . 1 . . . . . . streamctrl_low 1 | . . . . . . . . . 1 . . . . . Relay Couplers Released 8 | . . . . . . . . 8 . . . . . . Machine Destruction 8 | . . . . . . . . 8 . . . . . . Attached 3 | . . . . . . . . 1 1 1 . . . . Robots Rewired 1 | . . . . . . . . . . . . . 1 . Allies Hacked . | . . . . . . . . . . . . . . . Hacks Repelled . | . . . . . . . . . . . . . . . Allies | -11 -10 -10 -9 -9 -9 -8 -8 -8 -7 -7 -7 -7 -7 -7 -------- Run | Scr Mat Min Mat Min Exi Min Mat Gar Fac Was Fac Low Low Dat Total Allies 28 | . . 3 . 2 . . . 1 1 19 . . 2 . Largest Group 19 | . . 3 3 2 1 . . 1 1 19 12 5 5 1 Highest-Rated Group 487 | . . 40 40 47 26 . . 16 20 487 291 161 186 33 Highest-Rated Ally 137 | . . 16 16 31 26 . . 16 20 35 35 35 137 33 Total Orders 13 | . . . . . . . . . 1 12 . . . . AID 1 | . . . . . . . . . 1 . . . . . RETURN 12 | . . . . . . . . . . 12 . . . . Ally Attacks 349 | . . . 18 16 . . . 4 . 164 88 15 44 . Total Damage 7911 | . . . 187 272 . . . 66 . 3868 1592 523 1403 . Kills 55 | . . . 7 7 . . . 1 . 8 16 4 12 . Allies Corrupted . | . . . . . . . . . . . . . . . Allies Melted . | . . . . . . . . . . . . . . . Intel | -11 -10 -10 -9 -9 -9 -8 -8 -8 -7 -7 -7 -7 -7 -7 ------- Run | Scr Mat Min Mat Min Exi Min Mat Gar Fac Was Fac Low Low Dat Robot Analysis Total 116 | . 1 . . . . . . . . . . . . 115 Derelict Logs Recovered 5 | . . 1 . 3 . . . . . . . 1 . . Drone Launches 57 | . . . . . . . . . . 57 . . . . Drone Recoveries 54 | . . . . . . . . . . 54 . . . . Exploration | -11 -10 -10 -9 -9 -9 -8 -8 -8 -7 -7 -7 -7 -7 -7 ------------- Run | Scr Mat Min Mat Min Exi Min Mat Gar Fac Was Fac Low Low Dat Turns Passed 18907 | 129 1229 942 1614 1013 913 993 28 2908 3756 1285 737 1251 1631 478 Spaces Moved 8618 | 72 646 487 755 504 493 465 14 1117 1527 596 364 628 756 194 Core 17 | 2 . . . . . . . . . 8 . . . 7 Treads 8601 | 70 646 487 755 504 493 465 14 1117 1527 588 364 628 756 187 Legs . | . . . . . . . . . . . . . . . Wheels . | . . . . . . . . . . . . . . . Hover . | . . . . . . . . . . . . . . . Flight . | . . . . . . . . . . . . . . . Fastest Speed 50 | 50 160 160 180 180 180 200 200 200 192 50 180 180 200 50 Average Speed 190 | 156 160 178 181 180 181 200 200 200 207 187 180 197 200 188 Slowest Speed 1350 | 160 160 180 200 180 200 200 200 280 220 1350 180 200 200 200 Overloaded Moves . | . . . . . . . . . . . . . . . Propulsion Burnouts . | . . . . . . . . . . . . . . . Robots Hopped . | . . . . . . . . . . . . . . . Cave-ins Triggered . | . . . . . . . . . . . . . . . Exploration Rate (%) 69 | 6 95 98 76 97 87 89 3 88 46 96 13 83 89 80 Regions Visited 14 Branch Regions 7 Pre-discovered Areas 27 | . . 1 . . 1 . . . . . . . . 25 Known Exits Taken 4 | . 1 . 1 . . . 1 . . . 1 . . . Unknown Exits Taken 7 | 1 . 1 . 1 1 1 . . . . . 1 1 . Scrap Searched 17 | . . 2 . 3 . 1 . . . . . 8 3 . Spaces Dug 24 | . 1 . . 7 . . . 11 . . . . 2 3 Terrain Destroyed 351 | . 9 34 25 46 . 25 . 16 98 . . . 95 3 Melee 14 | . . . . . . . . 11 . . . . . 3 Projectile 6 | . 1 . . . . . . . . . . . 5 . AOE 331 | . 8 34 25 46 . 25 . 5 98 . . . 90 . Terrain Rammed . | . . . . . . . . . . . . . . . Walls Destroyed . | . . . . . . . . . . . . . . . Machines Disabled . | . . . . . . . . . . . . . . . Actions | -11 -10 -10 -9 -9 -9 -8 -8 -8 -7 -7 -7 -7 -7 -7 --------- Run | Scr Mat Min Mat Min Exi Min Mat Gar Fac Was Fac Low Low Dat Total 10213 | 83 767 530 920 560 513 501 15 1551 1907 714 440 640 821 251 Wait 544 | . 40 11 54 11 6 6 . 178 140 27 57 3 10 1 Move 8604 | 71 645 486 754 503 492 464 13 1115 1527 595 363 627 755 194 Hop . | . . . . . . . . . . . . . . . Pick Up 163 | 4 13 7 21 1 2 3 . 21 41 30 9 6 3 2 Fast Attach 42 | 6 3 . 9 . . . . 4 4 11 1 . 2 2 Attach 50 | . . . 2 2 1 2 2 10 17 10 . . . 4 Detach 9 | . . . 2 . . 1 . 2 1 1 . . . 2 Swap 126 | . 11 4 10 9 4 9 . 21 31 4 2 2 13 6 Drop 122 | . 11 4 23 . 8 . . 17 34 11 2 1 5 6 Fire 398 | 2 41 15 41 18 . 16 . 94 101 25 3 1 31 10 Melee 106 | . . . . 12 . . . 71 . . . . . 23 Ram . | . . . . . . . . . . . . . . . Kick . | . . . . . . . . . . . . . . . Crush 28 | . 3 3 4 3 . . . 3 9 . 3 . . . Escape Stasis 16 | . . . . . . . . 14 2 . . . . . Rewire 4 | . . . . 1 . . . 1 . . . . 2 . Trap 1 | . . . . . . . . . . . . . . 1 Miscellaneous . | . . . . . . . . . . . . . . . Route ------- -11/Scrapyard -10/Materials (discovered 5 exits: *Mat x3 / *Min x2) -10/Mines (discovered 2 exits: *Mat x2) -9/Materials (discovered 3 exits: *Mat / *Min x2) -9/Mines (discovered 3 exits: *Mat x2 / *Exi) -9/Exiles (discovered 2 exits: [*Min x2]) -8/Mines -8/Materials (discovered 3 exits: Sto x2 / Gar) -8/Garrison (discovered 3 exits: *Fac x3) -7/Factory -7/Waste -7/Factory (discovered 3 exits: *Fac / *Low x2) -7/Lower Caves -7/Lower Caves (discovered 3 exits: *Fac x2 / *Dat) -7/Data Miner (discovered 1 exit: [*Pro]) History --------- Turn | Location | Event 9 | -11/Scrapyard | Discovered new exit (range 15) 130 | -11/Scrapyard | Entered Materials 302 | -10/Materials | Build established: Mutant 330 | -10/Materials | Discovered new exit (range 14) 706 | -10/Materials | Discovered new exit (range 14) 727 | -10/Materials | Identified exit to Mines 1015 | -10/Materials | Discovered new exit (range 16) 1212 | -10/Materials | Repaired EM Pulse Gun 1293 | -10/Materials | Discovered new exit (range 5) 1299 | -10/Materials | Central database locked down 1359 | -10/Materials | Entered Mines 1435 | -10/Mines | Found a damaged Exp. Sensor Array with a note attached 1438 | -10/Mines | Found Prototype Device 1800 | -10/Mines | Discovered new exit (range 15) 1835 | -10/Mines | Met a Derelict who couldn't figure out how to use a Trap Extractor 1943 | -10/Mines | Discovered new exit (range 7) 1951 | -10/Mines | Assisted by bots powering up and referring to "LRC-V3" 2156 | -10/Mines | Learned location of Zion (-6) 2301 | -10/Mines | Entered Materials 2301 | -9/Materials | Accompanied by 3 allies 2301 | -9/Materials | Evolved 2 slots: Utility x1, Weapon x1 2477 | -9/Materials | Identified Exp. Sensor Array 2743 | -9/Materials | Build established: Scavenger-Gunner 2752 | -9/Materials | Identified exit to Mines 2904 | -9/Materials | Repaired Lgt. Treads 3092 | -9/Materials | Build established: Hauler-Gunner 3657 | -9/Materials | Discovered new exit (range 10) 3915 | -9/Materials | Entered Mines 4105 | -9/Mines | Discovered new exit (range 14) 4153 | -9/Mines | Learned Materials stockpile data 4760 | -9/Mines | Discovered new exit (range 7) 4782 | -9/Mines | Excavation squad dispatched 4782 | -9/Mines | A large section of the Mines collapsed 4863 | -9/Mines | Deemed a non-threat by the Exiles lab entrance 4863 | -9/Mines | Discovered new exit (range 5) 4928 | -9/Mines | Entered Exiles 4928 | -9/Exiles | Accompanied by 1 ally 4952 | -9/Exiles | Discovered new exit (range 15) 4958 | -9/Exiles | Led the pair of lost Derelicts to a safe place 4977 | -9/Exiles | Met 8R-AWN 5002 | -9/Exiles | Met EX-HEX 5074 | -9/Exiles | Met EX-DEC 5139 | -9/Exiles | Met EX-BIN 5240 | -9/Exiles | Aligned with FarCom system 5242 | -9/Exiles | Given EX-Vault access code 5285 | -9/Exiles | Opened EX-Vault 5310 | -9/Exiles | Found Army-in-a-Box 5351 | -9/Exiles | Warned to stay clear of 0b10 Research branches 5454 | -9/Exiles | Visited The Gauntlet 5823 | -9/Exiles | Discovered new exit (range 10) 5841 | -9/Exiles | Left Exiles lab with Army-in-a-Box 5841 | -9/Exiles | Entered Mines 6137 | -8/Mines | Build established: Hauler-Skirmisher 6371 | -8/Mines | Discovered new exit (range 9) 6834 | -8/Mines | Entered Materials 6834 | -8/Materials | Evolved 2 slots: Utility x2 6835 | -8/Materials | Identified exit to Storage 6856 | -8/Materials | Identified exit to Garrison 6862 | -8/Materials | Entered Garrison 6872 | -8/Garrison | Installed Relay Interface Framework 7084 | -8/Garrison | Triggered checkpoint 7123 | -8/Garrison | Garrison Relay disabled 7647 | -8/Garrison | Triggered checkpoint 7830 | -8/Garrison | Triggered checkpoint 7910 | -8/Garrison | Destroyed 8 combat bots 7933 | -8/Garrison | Lost 6 parts (1n3u2w) 8138 | -8/Garrison | Garrison Relay disabled 8322 | -8/Garrison | Triggered checkpoint 8400 | -8/Garrison | Discovered new exit (range 10) 8569 | -8/Garrison | Build established: Scavenger-Mutant 8688 | -8/Garrison | Triggered checkpoint 8993 | -8/Garrison | Discovered new exit (range 8) 9370 | -8/Garrison | Triggered checkpoint 9744 | -8/Garrison | Discovered new exit (range 9) 9770 | -8/Garrison | Entered Factory 9770 | -7/Factory | Evolved 2 slots: Utility x2 9772 | -7/Factory | Build established: Scavenger-Skirmisher 10015 | -7/Factory | Repaired Lgt. EM Pulse Cannon 10130 | -7/Factory | Build established: Scavenger-Tank 11098 | -7/Factory | Build established: Hauler-Tank 11243 | -7/Factory | Discovered new exit (range 11) 12048 | -7/Factory | Identified exit to Factory 12087 | -7/Factory | Build established: Hauler-Skirmisher 13370 | -7/Factory | First assault squad dispatched 13526 | -7/Factory | Sucked down chute 13526 | -7/Factory | Entered Waste 13546 | -7/Waste | Spotted C-40 Crusher 13622 | -7/Waste | Destroyed C-40 Crusher 13628 | -7/Waste | Spotted C-40 Crusher 13641 | -7/Waste | Spotted C-40 Crusher 13656 | -7/Waste | Spotted C-40 Crusher 13726 | -7/Waste | Spotted C-40 Crusher 13739 | -7/Waste | Spotted C-40 Crusher 13814 | -7/Waste | Crushed by Compactor (1 part destroyed, 1 dropped) 13817 | -7/Waste | Crushed by Compactor (1 part destroyed, 2 dropped) 13820 | -7/Waste | Crushed by Compactor (1 part destroyed, 2 dropped) 13823 | -7/Waste | Crushed by Compactor (1 part destroyed, 1 dropped) 13824 | -7/Waste | Core integrity fell below 50% 13826 | -7/Waste | Crushed by Compactor (1 part destroyed, 2 dropped) 13829 | -7/Waste | Crushed by Compactor (1 part destroyed, 1 dropped) 13843 | -7/Waste | Allies destroyed C-40 Crusher 13860 | -7/Waste | Lost 7 parts (3n2u2w) 13940 | -7/Waste | Allies destroyed C-40 Crusher 14067 | -7/Waste | Allies destroyed C-40 Crusher 14082 | -7/Waste | Allies destroyed C-40 Crusher 14083 | -7/Waste | Allies destroyed C-40 Crusher 14094 | -7/Waste | Warlord forces began an assault 14114 | -7/Waste | Build established: Mutant 14308 | -7/Waste | Discovered new exit (range 15) 14674 | -7/Waste | Build established: Hauler-Mutant 14811 | -7/Waste | Entered Factory 14811 | -7/Factory | Accompanied by 12 allies 15081 | -7/Factory | Fabricated Hcp. Storage Unit (x1) 15095 | -7/Factory | Build established: Hauler-Tank 15219 | -7/Factory | Repaired Broken Hvy. Pick 15306 | -7/Factory | Identified exit to Lower Caves 15449 | -7/Factory | Discovered exit to Factory (range 16) 15478 | -7/Factory | Build established: Hauler-Mutant 15548 | -7/Factory | Entered Lower Caves 15548 | -7/Lower Caves | Accompanied by 5 allies 15600 | -7/Lower Caves | Learned Factory stockpile data 15917 | -7/Lower Caves | Encountered a Warlord checkpoint 16017 | -7/Lower Caves | Build established: Hauler-Tank 16164 | -7/Lower Caves | Found Prototype Device 16530 | -7/Lower Caves | Build established: Hauler-Mutant 16653 | -7/Lower Caves | Discovered new exit (range 14) 16799 | -7/Lower Caves | Entered another Lower Caves area 16799 | -7/Lower Caves | Accompanied by 5 allies 16819 | -7/Lower Caves | Discovered exit to Factory (range 8) 17946 | -7/Lower Caves | Attracted the attention of an 0b10 outpost 18174 | -7/Lower Caves | Discovered new exit (range 12) 18285 | -7/Lower Caves | 1C-UTU showed up to help 18297 | -7/Lower Caves | 1C-UTU revealed a hidden path 18430 | -7/Lower Caves | Entered Data Miner 18430 | -7/Data Miner | Accompanied by 1 ally 18430 | -7/Data Miner | Discovered new exit (range 6) 18468 | -7/Data Miner | Met Data Miner 18502 | -7/Data Miner | Learned location of Section 7 (-3) 18502 | -7/Data Miner | Acquired the access code to Warlord's prototype stash 18534 | -7/Data Miner | Received God Mode back door access code from Data Miner 18782 | -7/Data Miner | Destroyed Data Miner 18785 | -7/Data Miner | Found Prototype Hackware 18786 | -7/Data Miner | Interfaced with the Data Conduit 18868 | -7/Data Miner | Core integrity fell below 20% 18905 | -7/Data Miner | Released all parts (7) 18908 | -7/Data Miner | Destroyed by Enhanced Grunt with Neutron Cannon Last Messages --------------- 18860_ Slug penetrates Data Conduit. 18863_ Particle Charger destroyed. 18874_ Hrd. Medium Armor Plating destroyed. 18876_ Hvy. Pick destroyed. 18885_ Slug penetrates Enhanced Grunt. 18888_ Gauss Rifle destroyed. 18893_ Slug penetrates Data Conduit. 18895_ Slug penetrates Enhanced Grunt. 18898_ Hvy. Treads destroyed. 18898_ Slug penetrates Data Conduit. 18900_ Slug penetrates Enhanced Grunt. 18902_ Hrd. Medium Armor Plating destroyed. 18903_ Slug penetrates Data Conduit. 18904_ Rnf. Deuterium Engine destroyed. 18905_ Released Weapon Cycler. 18905_ Released Imp. Heat Sink. 18905_ Released Hcp. Storage Unit. 18905_ Released Lrg. Storage Unit. 18905_ Released Hrd. Medium Armor Plating. 18905_ Released Gauss Rifle. Map ----- +----------------------------------------------------+ | | | | | | | | | | | | | | | | | | | ??????????????????????????????????????? | | ??????????????????????????????????????? | | ??????????????????????????????????????? | | ??????????????????????????????????????? | | ?????????????????????????????????????## | | ???##################????#######???### | | ???#" """"""""""###### ^ # #??## | | ??##! [ """ """"""""# ##"##### < | | ??#"["![ """ | | ??#]]!""""/ | | ??#!![ggg"[ g | | ??#"""!!"!!! | | ??#""|""""! % | | ??#"]"""""! """"""""""""""" | | ??#"""""""" """"############# | | ??##""""""" """""###???????????? | | ???##"""""""" @ "#####?????????????? | | ??????######"## "#?????????????????? | | ???????????#"### "#?????????????????? | | ???????????#"### "#?????????????????? | | ???????????#"## "#?????????????????? | | ???????????#?## "#?????????????????? | | ?????????????# "#?????????????????? | | ?????????????### "#?????????????????? | | ???????????????# "##????????????????? | | ??????????????## ""#????????????????? | | ???????????#"## ""#????????????????? | | ??????????##"#"X ""#????????????????? | | ??????????""""" "####?????????????? | | ??????????""""" X"""""?????????????? | | ??????????##"#"X "##"#?????????????? | | ???????????#?##!! X""""#?????????????? | | ??????????????## "##"#?????????????? | | ???????????????#######????????????????? | | ??????????????????????????????????????? | | ??????????????????????????????????????? | | ??????????????????????????????????????? | | ??????????????????????????????????????? | | ??????????????????????????????????????? | | ??????????????????????????????????????? | | ??????????????????????????????????????? | +----------------------------------------------------+ Best States ------------- Heat Dissipation 59 Energy Generation 16 Energy Capacity 290 Matter Stores 300 Matter Capacity 300 Sight Range 16 Robot Scan Range 30 Terrain Scan Density 10 Armor Coverage 600 Resistance: EM 15 Weapon Cycling 15 Evasion (%) 50 Targeting Accuracy 5 Recoil Reduction 2 Particle Charging 15 Offensive Hacking 10 Relay Coupler Types 26 Relay Coupler Value 1 Item Schematics ----------------- Exp. Sensor Array | -9/Materials | Scanalyzed Lrg. Matter Pod | -9/Materials | Extracted Terrain Scan Processor | -9/Materials | Extracted Imp. Terrain Scanner | -9/Materials | Extracted Targeting Computer | -9/Materials | Extracted Imp. Light Cannon | -9/Materials | Extracted Lrg. Storage Unit | -9/Materials | Hacked Hcp. Storage Unit | -9/Materials | Hacked Shock Rifle | -7/Factory | Scanalyzed Combat Drone Bay | -7/Data Miner | Free Lgt. Regenerative Plating | -7/Data Miner | Free Exp. Flexi-carbon Leg | -7/Data Miner | Free Cmb. Gravmag System | -7/Data Miner | Free Triangulator | -7/Data Miner | Free Tactical Coordination Suite | -7/Data Miner | Free Robot Schematics ------------------ G-50 Soldier | -7/Data Miner | Free S-27 Virus | -7/Data Miner | Free G-67 Veteran | -7/Data Miner | Free L-41 Fighter | -7/Data Miner | Free X-72 Disruptor | -7/Data Miner | Free P-70 Sage | -7/Data Miner | Free H-66 Slayer | -7/Data Miner | Free I-36 Angel | -7/Data Miner | Free Fabricated ------------ Hcp. Storage Unit | x1 | -7/Factory Alien Tech Used ----------------- None Achievements -------------- None Challenges ------------ None Game ------ Seed BlastCoordinationThrusters Manual? 0 Play Time 02:10:05 Cumulative 116.8 hours Start 2020.10.27 @ 11:08:21 End 2020.10.27 @ 13:21:52 Sessions 1 Manual Loads 0 Difficulty Rogue Special Mode None Game No. 41 Rogue 26 Adventurer 15 Explorer 0 Win Type - Total 3 Types 1/0/1/1/0/0/0/0/0 Lore% 74 Gallery% 72 Achievement% 60 Wizard Run 0 Options --------- ASCII 0 Keyboard 0 Movement Numpad Keybinds 0 Fullscreen 1 Font 18/SmallcapsGlow Map View 76x50 Tactical HUD 1 Map Filters NONE Filters NONE Steam 1 RUN: ef97b3c7-c846-4e3c-813f-85595e2f8dd6